[Event "79th Tata Steel Chess 2017-Masters"]
[Site "Wijk aan Zee"]
[Date "2017.01.21"]
[Round "7"]
[White "Wojtaszek, Radoslaw"]
[Black "Adhiban, Baskaran"]
[Result "0-1"]
[ECO "A40"]
[WhiteElo "2750"]
[BlackElo "2653"]
[Annotator "Sagar Shah"]
[PlyCount "132"]
[EventDate "2017.??.??"]
[EventType "tourn"]
[EventCountry "NED"]
[SourceTitle "playchess.com"]
[Source "ChessBase"]
[TimeControl "40/6000+30:20/3000+30:900+30"]

1. d4 {[%emt 0:00:00]} e6 {[%emt 0:00:30]} 2. c4 {[%emt 0:00:00]} b6 {4 The
English Defence. Once again Adhiban chooses a system which is not
theoretically popular.} 3. Nc3 {159} Bb4 {5 Now this has a flavour of the
Nimzo Indian + the Queen's Indian.} 4. Qc2 {119} Bb7 {[%emt 0:00:30]} 5. a3 {
[%emt 0:00:07]} Bxc3+ {[%emt 0:00:20]} 6. Qxc3 {[%emt 0:00:06]} f5 {127 And
now we have some sort of a Dutch!} 7. Nh3 {184 Wojtaszek develops his knight
on h3 so that he can keep the e4 square under control with the move f3.} Nf6 {
[%emt 0:00:40]} 8. f3 {[%emt 0:00:13]} O-O {75} 9. e3 {[%emt 0:00:14]} Nh5 {
[%emt 0:00:59]} 10. Be2 {285} Qh4+ {[%emt 0:00:16]} 11. Nf2 {30 Overall White
has a very harmonious position with the centre, and the bishop pair. But
Black's play is easy. He just develops d6-Nbd7 and breaks in the centre with
e5.} d6 {[%emt 0:00:14]} 12. b3 {261} Nd7 {109} 13. Bb2 {358} e5 {[%emt 0:00:
20]} 14. d5 {87} f4 {1192 Adhiban decides that it is best to close down the
position against White's bishops.} 15. e4 {80} a5 {688} 16. g3 {1246} Qe7 {
[%emt 0:00:08]} (16... fxg3 17. hxg3 Qg5 18. f4 Qxg3 19. Rxh5 Qg1+ 20. Kd2 (20.
Bf1 Rxf4 $19) 20... Qxf2 21. Rf1 $13) 17. g4 {[%emt 0:00:05]} Nhf6 {[%emt 0:00:
02]} 18. Qc2 {77} c6 $1 {95 The white king doesn't really have a safe spot to
go to and hence Adhiban opens up the position in the center.} 19. dxc6 {284}
Bxc6 {62} 20. b4 {[%emt 0:00:11]} axb4 {126} 21. axb4 {154} Rxa1+ {[%emt 0:00:
21]} 22. Bxa1 {[%emt 0:00:05]} Ra8 {109 Black pieces are activated without any
issues.} 23. Bb2 {[%emt 0:00:08]} Nf8 $1 {87 The knight is making its way from
e6 to d4.} 24. Qd2 {671} Ne6 {81} 25. O-O {159} h5 {80} 26. Rd1 {[%emt 0:00:13]
} Ra2 {1003} 27. b5 $6 {924} (27. Qxd6 Qxd6 28. Rxd6 Rxb2 29. Rxe6 Bd7 $1 30.
Rd6 Rxe2 31. g5 Nh7 32. Rxd7 Nxg5 $11 {When the position is around even.})
27... Bd7 {704} 28. c5 {704 This was Wojtaszek's plan. To get the bishop to c4.
} Nd4 $1 {175} 29. c6 {93} (29. Bc4+ d5 $1 30. exd5 Nxf3+ $19) 29... Be6 {
7 True the pawn on c6 is strong. It is even protected. But the knight on f6 is
going to come around to c7 and blockade the pawn. The other knight will also
jump in and the b5 pawn would become quite weak. Although at first look this
seems like better for White, it is in fact the other way around.} 30. g5 {89}
Ne8 {78} 31. h4 {125} Nc7 {[%emt 0:00:16]} 32. Kg2 {135} Bb3 {517} (32... d5 $5
) (32... Ncxb5 $2 33. Bxb5 Nxb5 34. Qb4 Nd4 35. Bxd4 $16) (32... Qe8 $1 33. Bd3
Ncxb5 34. Bxb5 Nxb5 $17) 33. Rc1 {139} Nxe2 {[%emt 0:00:20]} 34. Qxe2 {[%emt 0:
00:07]} Ba4 {362 Black goes after the b5 pawn, but now the d6 is also equally
weak and Black loses control.} 35. Qc4+ {130} Qf7 {[%emt 0:00:19]} 36. Qb4 {
20 White is already pretty fine, because the d6 pawn is falling.} Bxb5 {303}
37. Nd1 $1 {62 The bishop on b2 is defended and the d6 pawn is attacked.} Kh7 {
754} (37... Qe6 38. Nc3 $16) 38. Qxd6 $18 {43 In a matter of few moves the
position has turned into a clearly better one for White.} Be2 {[%emt 0:00:54]}
39. Qxe5 $1 {128} Ra5 {[%emt 0:00:32]} 40. Qd6 {[%emt 0:00:00]} (40. Qd4 $1 Ne6
41. Qxb6 $18 Rb5 42. Qf2 Bxd1 43. Rxd1 $18) 40... Ra2 {48 Forty moves have
been made. Now White is clearly winning and also has a lot of time in hand.}
41. Qb4 {683} (41. Qd7 $1 {Not an easy combination to see.} Qxd7 42. cxd7 Ne6
43. g6+ $3 {The only move to win.} Kh6 (43... Kxg6 44. Rc6 $18) (43... Kg8 44.
Rc8+ $18) 44. Rc2 $1 Bxd1 45. Bxg7+ $18) (41. Rc2 {is the simpler way to win.}
Bxd1 42. Qxd1 Qb3 43. Qc1 Ne6 44. Rd2 $18) 41... b5 {788} 42. Nf2 {372} Ne6 {
350} 43. Ra1 {1101} Rxa1 {108} 44. Bxa1 {34 White is still better, but nowhere
close to what he was four moves ago.} Qa7 {235} 45. Qd2 {228} Qe3 {217} 46.
Qxe3 {[%emt 0:00:05]} fxe3 {[%emt 0:00:02]} 47. Be5 $6 {196} (47. Nh3 b4 {
Maybe Wojtaszek was afraid of this position, but it should be a draw.}) 47...
b4 {269} 48. c7 {95} exf2 {80} 49. Kxf2 {[%emt 0:00:05]} Ba6 {9 Black has won
a piece but White has two pawns in return and very strong structure. The game
should be objectively drawn.} 50. Ke3 {69} g6 {574} 51. Kd2 {75} (51. f4 b3 52.
Kd2 Bc8 53. Kc3 Nc5 54. Bd4 Nxe4+ 55. Kxb3 $19 {This is als losing as the
knight will pick up the h4 pawn and the pawn will queen.}) 51... Kg8 {83} 52.
Kc2 {[%emt 0:00:17]} Bc8 {403} 53. Kb3 {129} Nc5+ {[%emt 0:00:00]} 54. Kc4 {
[%emt 0:00:05]} (54. Kxb4 Nd3+ $19) 54... Na6 {[%emt 0:00:09]} 55. Bd6 {291}
Be6+ {71} 56. Kd4 {[%emt 0:00:04]} (56. Kb5 b3 $19) 56... Kf7 {[%emt 0:00:41]}
57. f4 {[%emt 0:00:39]} b3 {[%emt 0:00:53]} 58. Kc3 {[%emt 0:00:37]} Ke8 {
[%emt 0:00:05]} 59. c8=Q+ {196} (59. f5 gxf5 60. exf5 Bxf5 61. Kxb3 {would
have given better drawing chances.} Kd7 62. c8=Q+ Kxc8 63. Kc4 Kd7 64. Kd5 $11)
59... Bxc8 {[%emt 0:00:03]} 60. Kxb3 {[%emt 0:00:00]} Kd7 {99} 61. Ba3 {
[%emt 0:00:10]} Bb7 {[%emt 0:00:15]} 62. f5 {[%emt 0:00:06]} (62. e5 Nc7 $19)
62... Bxe4 {[%emt 0:00:06]} 63. f6 {73} Bd5+ {130} 64. Kc3 {67} Nc7 {97} 65.
Kd3 {107} Ke6 {[%emt 0:00:51]} 66. Bc1 {[%emt 0:00:29]} Nb5 {48 Black has
complete control on the light squares and Wojtaszek saw no reason to continue
the fight.} 0-1

[Event "79th Tata Steel Chess 2017-Challengers"]
[Site "Wijk aan Zee"]
[Date "2017.01.21"]
[Round "7"]
[White "Xiong, Jeffery"]
[Black "Dobrov, Vladimir"]
[Result "1-0"]
[ECO "B27"]
[WhiteElo "2667"]
[BlackElo "2499"]
[PlyCount "75"]
[EventDate "2017.??.??"]
[TimeControl "60"]

1. e4 {[%emt 0:00:00]} c5 {[%emt 0:00:07]} 2. Nf3 {[%emt 0:00:00]} b6 {75} 3.
g3 {547} Bb7 {124} 4. Qe2 {132} g6 {311} 5. Bg2 {71} Bg7 {[%emt 0:00:04]} 6.
O-O {106} Nf6 {1093} 7. e5 {150} Nd5 {60} 8. d4 {305} Nc7 {183} 9. Rd1 {600}
Qc8 {271} 10. c3 {675} Bc6 {255} 11. h4 {266} Qa6 {277} 12. Qe3 {190} cxd4 {149
} 13. cxd4 {[%emt 0:00:20]} Nd5 {129} 14. Qe1 {63} Qb7 {[%emt 0:00:09]} 15. h5
{374} O-O {1143} 16. Nh4 {77} Na6 {[%emt 0:00:53]} 17. a3 {[%emt 0:00:25]} e6 {
252} 18. Nd2 {201} d6 {181} 19. Nc4 {221} dxe5 {[%emt 0:00:12]} 20. dxe5 {
[%emt 0:00:40]} Qe7 {396} 21. b4 {316} g5 {314} 22. h6 {349} Bxh6 {319} 23. Nd6
{77} Nac7 {87} 24. a4 {663} ({White could play the immediate} 24. b5 $1 {
that comes with a venemous idea.} Nxb5 $2 (24... Bd7 {is the only move.}) 25.
Bxd5 Bxd5 26. Rxd5 $1 exd5 27. Nhf5 Qe6 28. Nxh6+ Qxh6 29. Nxb5 $18) 24... Bg7
{154} 25. Nf3 {[%emt 0:00:33]} f6 {204} 26. b5 {[%emt 0:00:35]} Be8 {[%emt 0:
00:02]} 27. Ba3 {[%emt 0:00:41]} Qd7 {287} 28. Ne4 {113} f5 {69} 29. Nexg5 {165
} Bh5 {[%emt 0:00:03]} 30. Bxf8 {[%emt 0:00:15]} Rxf8 {[%emt 0:00:31]} 31. Rac1
{80} Qe7 {113} 32. Rc6 {85} f4 {44 [#] Finishing with style.} 33. Rxd5 $1 {260}
exd5 {127} (33... Nxd5 34. Nxe6 fxg3 35. Nxf8 Qxf8 36. Qe4) 34. Qb1 {[%emt 0:
00:58]} Bg6 {[%emt 0:00:59]} 35. Rxg6 {[%emt 0:00:21]} hxg6 {[%emt 0:00:02]}
36. Qxg6 {[%emt 0:00:07]} Rd8 {63} 37. Nh4 {[%emt 0:00:19]} Kf8 {[%emt 0:00:08]
} 38. Nf5 {[%emt 0:00:24]} 1-0

[Event "79th Tata Steel Chess 2017-Masters"]
[Site "Wijk aan Zee"]
[Date "2017.01.22"]
[Round "8"]
[White "Adhiban, Baskaran"]
[Black "Andreikin, Dmitry"]
[Result "1-0"]
[ECO "B25"]
[WhiteElo "2653"]
[BlackElo "2736"]
[Annotator "Sagar Shah"]
[PlyCount "91"]
[EventDate "2017.??.??"]
[EventType "tourn"]
[EventCountry "NED"]
[SourceTitle "playchess.com"]
[Source "ChessBase"]
[TimeControl "40/6000+30:20/3000+30:900+30"]

1. e4 {[%emt 0:00:00]} e5 {[%emt 0:00:11]} 2. Nc3 $5 {0 Who wants to waste
time studying the Berlin and the Ruy Lopez!} Nc6 {95} 3. g3 {[%emt 0:00:00]} g6
{129} 4. Bg2 {[%emt 0:00:01]} Bg7 {[%emt 0:00:30]} 5. d3 {[%emt 0:00:06]} d6 {
18 It's all symmetrical until now.} 6. f4 {[%emt 0:00:04]} Nge7 {948 Played
after 15 minutes of thought.} (6... f5 $5 {Black could have maintained the
symmetry. But not for long.} 7. exf5 Bxf5 8. fxe5 Nxe5 9. Bxb7 Rb8 10. Bg2 Bg4
11. Nge2 Nf3+ $44) 7. Nf3 {[%emt 0:00:03]} Nd4 {254} 8. O-O {594} Bg4 {121
Adhiban found this plan to be slightly irritating as it is not so easy to
break the pin.} 9. Be3 {200} c5 {889} 10. Qd2 {69} O-O {[%emt 0:00:23]} 11. Nh4
{384} exf4 {250} 12. Bxf4 {95} Qd7 {233} 13. Rf2 {693 White has natural play,
but overall Black cannot be worse here as he has developed all his pieces and
is clearly well co-ordinated.} Rae8 {98} 14. Bh6 {762} Bxh6 {141} 15. Qxh6 {
[%emt 0:00:02]} b5 {[%emt 0:00:08]} 16. h3 $5 {408} Be6 {109} (16... Bxh3 17.
Nf3 $1 Nxf3+ 18. Bxf3 $18 {The rook is coming to h2 and Black is lost!}) 17.
Raf1 {[%emt 0:00:50]} Qd8 {592} (17... d5 $5 {This should have been given some
thought by Andreikin.} 18. exd5 Bxd5 $1 (18... Nxd5 $2 19. Ne4 $16) 19. Nxd5
Nxd5 $11 {And although the bishop is gone Black is very well co-ordinated.})
18. Nb1 {711} (18. Nd1 {with the idea of Ne3 was even stronger.}) 18... d5 $2 {
221 A very bad move because it helps the knight to come to the e4 square.} (
18... Bxa2 $5 19. Nd2 f6 $5 (19... Be6 $6 20. c3 $1 Nb3 21. Nxb3 Bxb3 22. Rf6 {
Nf3-g5 would be terminal.}) 20. b3 $13 (20. Rxf6 Rxf6 21. Rxf6 Rf8 22. Rxf8+
Qxf8 $11)) 19. Nd2 $1 {500} dxe4 $2 {15 This is just suicide by Andreikin.
Letting the knight come to e4 means that all the dark squares around the black
king would be in danger.} 20. Nxe4 {[%emt 0:00:47]} Nef5 {[%emt 0:00:07]} (
20... Nd5 21. Ng5 $18) 21. Rxf5 $1 {45 The reason why this move works and Nxf5
is not very strong is because the last piece to take on f5 should be a knight.
This would mean that there is a mate on g7 and Black has no time for Rxe4.
Quite a simple tactic, but things can become complex when too many pieces are
vying the same square.} (21. Nxf5 Nxf5 22. Rxf5 Bxf5 23. Rxf5 {This seems very
strong, but Black has} Rxe4 $1 24. Bxe4 gxf5 25. Bxf5 Qd4+ 26. Kg2 Qg7 $17 {
When the attack is repelled and Black is clearly better.}) 21... Nxf5 {[%emt 0:
00:32]} (21... Bxf5 22. Ng5 $18) 22. Rxf5 $1 {[%emt 0:00:07]} Qd4+ {78} (22...
Bxf5 23. Nxf5 $1 gxf5 24. Nf6+ Qxf6 25. Qxf6 $18) 23. Rf2 $1 {195 White simply
has two pieces for a rook and Black is utterly lost.} f5 {[%emt 0:00:06]} 24.
Ng5 {97} (24. Nxg6 $1 hxg6 25. Qxg6+ Qg7 (25... Kh8 26. Ng5 Qg7 27. Qh5+ Kg8
28. Nxe6 Rxe6 29. Bd5 $18) 26. Nf6+ $1 Rxf6 27. Qxe8+ $18) 24... Qg7 {[%emt 0:
00:37]} 25. Qxg7+ {[%emt 0:00:23]} Kxg7 {[%emt 0:00:04]} 26. Bc6 {[%emt 0:00:
13]} h6 {[%emt 0:00:07]} (26... Re7 27. Re2 Kf6 28. Rxe6+ Rxe6 29. Nxh7+ Kg7
30. Nxf8 Kxf8 31. Bxb5 $18) 27. Nxe6+ {106} Rxe6 {[%emt 0:00:06]} 28. Bxb5 {
1 The rest as they is just a matter of technique. Adhiban mopped up the game
pretty quickly.} Rb8 {[%emt 0:00:45]} 29. a4 {202} a6 {[%emt 0:00:06]} 30. Bc4
{[%emt 0:00:06]} Re1+ {[%emt 0:00:04]} 31. Kg2 {158} Rxb2 {[%emt 0:00:06]} 32.
Bxa6 {[%emt 0:00:09]} Rc1 {173} 33. Bc4 {140} Rcxc2 {[%emt 0:00:46]} 34. Rxc2 {
[%emt 0:00:07]} Rxc2+ {[%emt 0:00:03]} 35. Kf3 {[%emt 0:00:19]} Kf6 {[%emt 0:
00:04]} 36. a5 {[%emt 0:00:53]} g5 {[%emt 0:00:15]} 37. a6 {[%emt 0:00:07]} Rc1
{[%emt 0:00:23]} 38. Ng2 {[%emt 0:00:34]} Ke5 {[%emt 0:00:06]} 39. Ne3 {286} h5
{[%emt 0:00:07]} 40. Nc2 $1 {0 The final touch.} g4+ {[%emt 0:00:29]} 41. Ke3 {
519} gxh3 {115} 42. a7 {147} h2 {[%emt 0:00:05]} 43. a8=Q {[%emt 0:00:38]} h1=Q
{[%emt 0:00:07]} 44. Qb8+ {[%emt 0:00:21]} Kf6 {[%emt 0:00:10]} 45. Qf8+ {
[%emt 0:00:09]} Kg6 {[%emt 0:00:12]} 46. Bf7+ {[%emt 0:00:14]} 1-0

[Event "Wijk aan Zee"]
[Site "Wijk aan Zee"]
[Date "2017.01.22"]
[Round "8"]
[White "Harikrishna, Pentala"]
[Black "Wei, Yi"]
[Result "1/2-1/2"]
[ECO "C43"]
[WhiteElo "2766"]
[BlackElo "2706"]
[Annotator "ChessBase"]
[PlyCount "54"]
[EventDate "2017.??.??"]
[EventType "tourn"]
[EventCountry "NED"]
[SourceTitle "playchess.com"]
[Source "ChessBase"]
[TimeControl "40/6000+30:20/3000+30:900+30"]

1. e4 {[%emt 0:00:00]} e5 {[%emt 0:00:07]} 2. Nf3 {[%emt 0:00:00]} Nf6 {
[%emt 0:00:10]} 3. d4 {[%emt 0:00:00]} Nxe4 {[%emt 0:00:12]} 4. dxe5 {[%emt 0:
00:00]} d5 {[%emt 0:00:11]} 5. Nbd2 {[%emt 0:00:00]} Nc5 {75} 6. Be2 {[%emt 0:
00:00]} Be7 {485} 7. O-O {[%emt 0:00:09]} O-O {410} 8. Re1 {[%emt 0:00:04]} Nc6
{424} 9. Nf1 {830} f6 {229} 10. exf6 {383} Bxf6 {244} 11. Ng3 {159} Qd6 {612}
12. c3 {498} Be6 {252} 13. Ng5 {361} Bd7 {1305} 14. Bf3 {1142} Ne7 {[%emt 0:00:
43]} 15. Be3 {231} Ne6 {445} 16. Nxe6 {485} Bxe6 {[%emt 0:00:10]} 17. Qe2 {592}
Bf7 {127} 18. Rad1 {85} Rfe8 {320} 19. Qb5 $6 {740} (19. Qd2 {with the threat
of Bf4 is quite strong.} Be5 20. Bg4 c6 (20... Kh8 21. f4 Bf6 22. Nh5 $14) 21.
f4 Bf6 22. Ne4 $18) 19... a6 $1 {[%emt 0:00:22]} 20. Qa4 {[%emt 0:00:20]} b5 {
135} 21. Qc2 {[%emt 0:00:44]} Qc6 {105} 22. Nh5 {[%emt 0:00:32]} Be5 {[%emt 0:
00:41]} 23. Nf4 {[%emt 0:00:27]} Rad8 {[%emt 0:00:39]} 24. Nd3 {98} Bf6 {
[%emt 0:00:23]} 25. Bf4 $6 {[%emt 0:00:16]} (25. Qd2 $14 {Would have
maintained the slight edge for White in this position.} Ng6 26. Nb4 $1 Qb7 27.
Nxd5 $16) (25. Nb4 $14 {was also a good move.}) 25... Ng6 $1 {137 Black is
able to unravel now and get an easy game. It was important to keep the
pressure on d5.} 26. Bg3 {116} Rxe1+ {88} 27. Rxe1 {[%emt 0:00:32]} Qb6 {60} (
27... Qb6 28. Nb4 c5 $15) 1/2-1/2

[Event "Wijk aan Zee"]
[Site "Wijk aan Zee"]
[Date "2017.01.22"]
[Round "8"]
[White "Eljanov, Pavel"]
[Black "Wojtaszek, Radoslaw"]
[Result "1/2-1/2"]
[ECO "B92"]
[WhiteElo "2755"]
[BlackElo "2750"]
[Annotator "ChessBase"]
[PlyCount "92"]
[EventDate "2017.??.??"]
[EventType "tourn"]
[EventCountry "NED"]
[SourceTitle "playchess.com"]
[Source "ChessBase"]
[TimeControl "40/6000+30:20/3000+30:900+30"]

1. e4 {[%emt 0:00:00]} c5 {[%emt 0:00:06]} 2. Nf3 {[%emt 0:00:02]} d6 {[%emt 0:
00:03]} 3. d4 {[%emt 0:00:07]} cxd4 {[%emt 0:00:03]} 4. Nxd4 {[%emt 0:00:04]}
Nf6 {[%emt 0:00:03]} 5. Nc3 {[%emt 0:00:06]} a6 {[%emt 0:00:04]} 6. Be2 {
[%emt 0:00:04]} e5 {[%emt 0:00:06]} 7. Nb3 {[%emt 0:00:07]} Be7 {[%emt 0:00:07]
} 8. Be3 {[%emt 0:00:17]} Be6 {[%emt 0:00:47]} 9. Nd5 {[%emt 0:00:39]} Nbd7 {
202} 10. Qd3 {[%emt 0:00:45]} Bxd5 {[%emt 0:00:50]} 11. exd5 {[%emt 0:00:06]}
O-O {[%emt 0:00:04]} 12. a4 {99} Rc8 {935} 13. a5 {[%emt 0:00:23]} Ne8 {
[%emt 0:00:13]} 14. O-O {180} Bg5 {[%emt 0:00:53]} 15. c4 {198} f5 {238} 16. f3
{470} Bxe3+ {318} 17. Qxe3 {[%emt 0:00:04]} f4 {60} 18. Qf2 {139} g5 {157} 19.
Nd2 {132} Ndf6 {324} 20. b4 {540} Ng7 {131} 21. Ne4 {443} Nxe4 {297} 22. fxe4 {
[%emt 0:00:17]} g4 {[%emt 0:00:09]} 23. c5 {849} Qg5 {[%emt 0:00:51]} 24. c6 {
262} bxc6 {434} 25. Bxa6 {137} g3 {439} 26. Qf3 {475} Rc7 {137} 27. dxc6 {250}
gxh2+ {[%emt 0:00:53]} 28. Kxh2 {83} d5 {310} 29. exd5 {843} Nf5 {[%emt 0:00:
10]} 30. d6 {141} Qh6+ {493} 31. Qh3 {387} Qxd6 {[%emt 0:00:05]} 32. Bc4+ {309}
Kh8 {[%emt 0:00:17]} 33. b5 {101} Rg7 {301} 34. Rad1 {[%emt 0:00:56]} Nd4 {
[%emt 0:00:07]} 35. Rxd4 {305} Qxd4 {303} 36. Qd3 {[%emt 0:00:52]} Qc5 {208}
37. Rf3 {323} Qe7 {192} 38. Bd5 {[%emt 0:00:41]} Qg5 {866} 39. Rh3 {[%emt 0:00:
50]} Rd8 {158} 40. b6 $2 {[%emt 0:00:00]} (40. Qf3 $1 $18 {Prophylaxis against
e4! White is just winning now.}) 40... e4 {180} 41. Qxe4 {511} f3 {114} (41...
Rxd5 42. c7 $18) 42. Qxf3 {160} Rxd5 {776} 43. c7 {1313} Qe5+ {340} 44. Rg3 {
116} Rxg3 {[%emt 0:00:18]} 45. Qxg3 {[%emt 0:00:05]} Qh5+ {[%emt 0:00:08]} 46.
Qh3 {[%emt 0:00:03]} Qe5+ {5 Wojtazek escapes narrowly!} 1/2-1/2

[Event "Wijk aan Zee"]
[Site "Wijk aan Zee"]
[Date "2017.01.22"]
[Round "8"]
[White "Rapport, Richard"]
[Black "Carlsen, Magnus"]
[Result "1-0"]
[ECO "A12"]
[WhiteElo "2702"]
[BlackElo "2840"]
[Annotator "Sagar Shah"]
[PlyCount "65"]
[EventDate "2017.??.??"]
[EventType "tourn"]
[EventCountry "NED"]
[SourceTitle "playchess.com"]
[Source "ChessBase"]
[TimeControl "40/6000+30:20/3000+30:900+30"]

1. Nf3 {[%emt 0:00:00]} d5 {[%emt 0:00:56]} 2. b3 {[%emt 0:00:15]} Bf5 {172} 3.
Bb2 {75} e6 {[%emt 0:00:23]} 4. d3 {68} h6 {61} 5. Nbd2 {[%emt 0:00:23]} Nf6 {
[%emt 0:00:11]} 6. c4 {274} c6 {[%emt 0:00:35]} 7. g3 {483} Be7 {91} 8. Bg2 {
[%emt 0:00:36]} O-O {[%emt 0:00:13]} 9. O-O {172} Nbd7 {[%emt 0:00:24]} 10. a3
{90} a5 {[%emt 0:00:39]} 11. Qb1 {318} Bh7 {571} 12. b4 $1 {298} axb4 {774} 13.
axb4 {[%emt 0:00:31]} Qb6 {[%emt 0:00:16]} 14. Bc3 {835} Rxa1 {359} 15. Qxa1 {
[%emt 0:00:16]} Bxb4 {[%emt 0:00:11]} 16. Bxb4 {[%emt 0:00:23]} Qxb4 {[%emt 0:
00:02]} 17. Rb1 {[%emt 0:00:10]} Qd6 {[%emt 0:00:09]} 18. Rxb7 {11 White has a
small edge here, but still nothing substantial.} e5 {[%emt 0:00:01]} 19. d4 $1
{11 This is a thoroughly disruptive move. Only a player who understands
dynamics well can make this move as it spoils the pawn structure for White.}
exd4 {182} (19... e4 20. Ne5 $14) 20. Nxd4 {1359} c5 {[%emt 0:00:56]} 21. N4b3
{679} d4 {289} 22. Bh3 {262} d3 $6 {1928 Magnus never really forces the play
in a manner where his position is worsened. Here he loses his sense of danger.}
23. e3 $1 {292 The knights blockade the d3 pawn very well and it becomes more
of a weakness than a strength. Also the queen is ready to break in to a7.} Ne5
{68} 24. Bg2 {[%emt 0:00:49]} Rc8 {728} 25. f4 $1 {209} Neg4 {297} 26. e4 {
25 Tactics do not work for Black here.} Re8 {297} (26... Nd7 27. Bf3 h5 28. Qa7
Rd8 29. Rc7 $18) 27. e5 {[%emt 0:00:56]} Nxe5 {61} 28. fxe5 {[%emt 0:00:12]}
Rxe5 {[%emt 0:00:02]} 29. Rb6 {[%emt 0:00:24]} (29. Qa7 Re2 30. Qxc5 Qxc5+ 31.
Nxc5 $18) 29... Qe7 {[%emt 0:00:18]} (29... Qc7 $16) 30. Rb8+ {72} Ne8 {
[%emt 0:00:04]} 31. Bc6 $1 {24 Tactically, Black is completely lost.} Re1+ {
[%emt 0:00:35]} 32. Qxe1 {[%emt 0:00:05]} Qxe1+ {[%emt 0:00:09]} 33. Nf1 {
2 The last quiet move and it's all over. You will either lose the queen or the
king!} 1-0